[Event "*** Titled Tuesday Blitz AM"]
[Site "Chess.com"]
[Date "2020.01.07"]
[Round "1"]
[White "CrgKrishna"]
[Black "Fandorine"]
[Result "0-1"]
[WhiteElo "2479"]
[BlackElo "2886"]
[TimeControl "180+2"]
[EndTime "9:09:16 PST"]
[Termination "Fandorine won by resignation"]

1. Nf3 {[%clk 0:02:59.1]} 1... Nf6 {[%clk 0:02:56.3]} 2. g3 {[%clk 0:02:59]}
2... g6 {[%clk 0:02:56.6]} 3. Bg2 {[%clk 0:03:00.1]} 3... Bg7 {[%clk 0:02:58.2]}
4. O-O {[%clk 0:03:01.1]} 4... O-O {[%clk 0:02:59.9]} 5. c4 {[%clk 0:03:02.2]}
5... d6 {[%clk 0:03:00]} 6. d4 {[%clk 0:03:02.6]} 6... Nc6 {[%clk 0:02:57]} 7.
Nc3 {[%clk 0:03:03.3]} 7... a6 {[%clk 0:02:55.3]} 8. b3 {[%clk 0:03:03.9]} 8...
Bf5 {[%clk 0:02:54.2]} 9. Bb2 {[%clk 0:03:00.6]} 9... Ne4 {[%clk 0:02:54.8]} 10.
Nd5 {[%clk 0:02:57.7]} 10... Nf6 {[%clk 0:02:35.7]} 11. Nh4 {[%clk 0:02:56.6]}
11... Bd7 {[%clk 0:02:33.6]} 12. Qd2 {[%clk 0:02:57.1]} 12... Rc8 {[%clk
0:02:10.8]} 13. e4 {[%clk 0:02:52.9]} 13... Ne8 {[%clk 0:02:02.8]} 14. Rad1
{[%clk 0:02:48.9]} 14... Bg4 {[%clk 0:02:02.1]} 15. f3 {[%clk 0:02:48.4]} 15...
Bd7 {[%clk 0:02:03.6]} 16. f4 {[%clk 0:02:48.3]} 16... e6 {[%clk 0:02:04.6]} 17.
Ne3 {[%clk 0:02:49]} 17... Ne7 {[%clk 0:01:59.9]} 18. f5 {[%clk 0:02:44.3]}
18... exf5 {[%clk 0:01:57.2]} 19. e5 {[%clk 0:02:44.7]} 19... b5 {[%clk
0:01:49.1]} 20. Bb7 {[%clk 0:02:31.6]} 20... Rb8 {[%clk 0:01:49.8]} 21. Bxa6
{[%clk 0:02:31.6]} 21... c6 {[%clk 0:01:47.6]} 22. cxb5 {[%clk 0:02:21.5]} 22...
cxb5 {[%clk 0:01:48.1]} 23. a4 {[%clk 0:02:19.4]} 23... bxa4 {[%clk 0:01:48.6]}
24. bxa4 {[%clk 0:02:21.3]} 24... Qb6 {[%clk 0:01:45]} 25. Bb5 {[%clk
0:02:21.6]} 25... Bxb5 {[%clk 0:01:45.7]} 26. axb5 {[%clk 0:02:23.5]} 26... Qxb5
{[%clk 0:01:47.6]} 27. Ba3 {[%clk 0:02:24.4]} 27... Ra8 {[%clk 0:01:33]} 28.
exd6 {[%clk 0:02:15.4]} 28... Nd5 {[%clk 0:01:30.6]} 29. d7 {[%clk 0:02:12.7]}
29... Rxa3 {[%clk 0:01:31.4]} 30. d8=Q {[%clk 0:02:10.6]} 30... Nxe3 {[%clk
0:01:30.5]} 31. Qe7 {[%clk 0:01:46]} 31... Nxf1 {[%clk 0:01:28.9]} 32. Rxf1
{[%clk 0:01:47.9]} 32... Rd3 {[%clk 0:01:22.6]} 33. Qdb4 {[%clk 0:01:30.4]}
33... Qd5 {[%clk 0:01:08.4]} 34. Ng2 {[%clk 0:01:19.9]} 34... Rxd4 {[%clk
0:01:02.8]} 35. Qbc5 {[%clk 0:01:14.9]} 35... Qxc5 {[%clk 0:01:04.1]} 36. Qxc5
{[%clk 0:01:15.8]} 36... Nd6 {[%clk 0:01:05.5]} 37. Kh1 {[%clk 0:00:56.3]} 37...
Ne4 {[%clk 0:01:05.4]} 38. Qa7 {[%clk 0:00:44.6]} 38... Rfd8 {[%clk 0:01:05.9]}
39. Nf4 {[%clk 0:00:42.6]} 39... R4d7 {[%clk 0:01:05.2]} 40. Qb6 {[%clk
0:00:41.4]} 40... Bd4 {[%clk 0:01:05.9]} 41. Qb5 {[%clk 0:00:38.6]} 41... Be3
{[%clk 0:01:03.1]} 42. Qe5 {[%clk 0:00:25.2]} 42... Bxf4 {[%clk 0:00:54.8]} 43.
Qxf4 {[%clk 0:00:20.6]} 43... h5 {[%clk 0:00:55.9]} 44. Re1 {[%clk 0:00:14.6]}
44... Rd2 {[%clk 0:00:51.7]} 45. Rf1 {[%clk 0:00:12.9]} 45... Re2 {[%clk
0:00:46.1]} 46. Ra1 {[%clk 0:00:10.8]} 46... Nf2+ {[%clk 0:00:42.8]} 47. Kg2
{[%clk 0:00:10.7]} 47... Nd3+ {[%clk 0:00:43.7]} 0-1

[Event "*** Titled Tuesday Blitz AM"]
[Site "Chess.com"]
[Date "2020.01.07"]
[Round "1"]
[White "crescentmoon2411"]
[Black "angryhorse9"]
[Result "1-0"]
[WhiteElo "2701"]
[BlackElo "2262"]
[TimeControl "180+2"]
[EndTime "9:09:42 PST"]
[Termination "crescentmoon2411 won by resignation"]

1. e4 {[%clk 0:03:01.1]} 1... c5 {[%clk 0:02:55.4]} 2. Nf3 {[%clk 0:03:01.7]}
2... e6 {[%clk 0:02:49.3]} 3. g3 {[%clk 0:03:00.1]} 3... Nc6 {[%clk 0:02:47]} 4.
Bg2 {[%clk 0:03:00.8]} 4... Nf6 {[%clk 0:02:44.8]} 5. d3 {[%clk 0:02:58.1]} 5...
e5 {[%clk 0:02:44.8]} 6. Nc3 {[%clk 0:02:56.5]} 6... Be7 {[%clk 0:02:41.3]} 7.
O-O {[%clk 0:02:54.7]} 7... O-O {[%clk 0:02:41.8]} 8. Nd2 {[%clk 0:02:49.5]}
8... d6 {[%clk 0:02:27.5]} 9. Nc4 {[%clk 0:02:50.4]} 9... Bg4 {[%clk 0:02:21.4]}
10. f3 {[%clk 0:02:46.2]} 10... Be6 {[%clk 0:02:19]} 11. f4 {[%clk 0:02:43.7]}
11... exf4 {[%clk 0:01:55.2]} 12. Bxf4 {[%clk 0:02:44.1]} 12... d5 {[%clk
0:01:55.4]} 13. Ne5 {[%clk 0:02:36.7]} 13... Nxe5 {[%clk 0:01:51.3]} 14. Bxe5
{[%clk 0:02:38.6]} 14... d4 {[%clk 0:01:49]} 15. Ne2 {[%clk 0:02:30.4]} 15...
Ng4 {[%clk 0:01:49]} 16. Bf4 {[%clk 0:02:31.4]} 16... Bg5 {[%clk 0:01:41.4]} 17.
Qd2 {[%clk 0:02:23.4]} 17... Bxf4 {[%clk 0:01:29.4]} 18. Nxf4 {[%clk 0:02:21.5]}
18... Ne3 {[%clk 0:01:29.6]} 19. Rf2 {[%clk 0:02:22.1]} 19... Qd6 {[%clk
0:01:27.3]} 20. Re1 {[%clk 0:02:19.7]} 20... a5 {[%clk 0:01:21.2]} 21. c4 {[%clk
0:02:10.8]} 21... a4 {[%clk 0:00:57.7]} 22. Bf3 {[%clk 0:02:11.4]} 22... Rab8
{[%clk 0:00:56.4]} 23. Ng2 {[%clk 0:02:08.3]} 23... b5 {[%clk 0:00:54.7]} 24.
Nxe3 {[%clk 0:01:56.5]} 24... dxe3 {[%clk 0:00:55.6]} 25. Qxe3 {[%clk
0:01:57.8]} 25... bxc4 {[%clk 0:00:56.9]} 26. dxc4 {[%clk 0:01:57.2]} 26... Bxc4
{[%clk 0:00:56.7]} 27. Rd2 {[%clk 0:01:32]} 27... Qe5 {[%clk 0:00:56.1]} 28. Qa3
{[%clk 0:01:29.7]} 28... Rb4 {[%clk 0:00:55.3]} 29. Rc1 {[%clk 0:01:28]} 29...
Rfb8 {[%clk 0:00:53.2]} 30. Rdc2 {[%clk 0:00:36.9]} 30... Qd4+ {[%clk
0:00:46.4]} 31. Kh1 {[%clk 0:00:36.9]} 31... Rxb2 {[%clk 0:00:42.9]} 32. Rxb2
{[%clk 0:00:19]} 32... Rxb2 {[%clk 0:00:44.3]} 33. Qxa4 {[%clk 0:00:19.9]} 33...
g6 {[%clk 0:00:30]} 34. Bg2 {[%clk 0:00:17.7]} 34... Qf2 {[%clk 0:00:14.7]} 35.
Rg1 {[%clk 0:00:17.7]} 35... Bf1 {[%clk 0:00:13]} 36. Qe8+ {[%clk 0:00:18.7]}
36... Kg7 {[%clk 0:00:13.4]} 37. Qe5+ {[%clk 0:00:20.4]} 37... f6 {[%clk
0:00:11.8]} 38. Qc7+ {[%clk 0:00:20.4]} 38... Kh6 {[%clk 0:00:13.2]} 39. Qf4+
{[%clk 0:00:21.5]} 39... Qxf4 {[%clk 0:00:14.1]} 40. gxf4 {[%clk 0:00:23.4]}
40... Bxg2+ {[%clk 0:00:13.7]} 41. Rxg2 {[%clk 0:00:25.3]} 41... Rb1+ {[%clk
0:00:15.5]} 42. Rg1 {[%clk 0:00:26.6]} 42... Rb4 {[%clk 0:00:15.8]} 43. Re1
{[%clk 0:00:27.3]} 43... Ra4 {[%clk 0:00:17.3]} 44. Re2 {[%clk 0:00:28.2]} 44...
Kh5 {[%clk 0:00:19.2]} 45. h3 {[%clk 0:00:28.9]} 45... Kh4 {[%clk 0:00:19.4]}
46. Kg2 {[%clk 0:00:30.1]} 46... Ra3 {[%clk 0:00:19.8]} 47. e5 {[%clk
0:00:31.5]} 47... fxe5 {[%clk 0:00:19.6]} 48. fxe5 {[%clk 0:00:32.9]} 48... Rg3+
{[%clk 0:00:19.9]} 49. Kf2 {[%clk 0:00:33]} 49... Rxh3 {[%clk 0:00:20.7]} 50. e6
{[%clk 0:00:34.4]} 50... Rh2+ {[%clk 0:00:17.8]} 51. Ke1 {[%clk 0:00:35.2]} 1-0

[Event "*** Titled Tuesday Blitz AM"]
[Site "Chess.com"]
[Date "2020.01.07"]
[Round "1"]
[White "INLOVEWITHF"]
[Black "Lunaticx"]
[Result "0-1"]
[WhiteElo "2458"]
[BlackElo "2848"]
[TimeControl "180+2"]
[EndTime "9:09:44 PST"]
[Termination "Lunaticx won by resignation"]

1. e4 {[%clk 0:03:01.8]} 1... c5 {[%clk 0:02:59.9]} 2. Nf3 {[%clk 0:03:02.1]}
2... d6 {[%clk 0:03:01.2]} 3. d4 {[%clk 0:03:02.9]} 3... cxd4 {[%clk 0:03:01.6]}
4. Nxd4 {[%clk 0:03:04.8]} 4... Nf6 {[%clk 0:03:01.3]} 5. Nc3 {[%clk 0:03:06.1]}
5... a6 {[%clk 0:03:02.4]} 6. Be3 {[%clk 0:03:03.6]} 6... e5 {[%clk 0:03:02.9]}
7. Nb3 {[%clk 0:03:04.2]} 7... Be6 {[%clk 0:02:59.5]} 8. h3 {[%clk 0:03:03.9]}
8... Nbd7 {[%clk 0:02:54.2]} 9. f4 {[%clk 0:03:03.4]} 9... Qc7 {[%clk
0:02:53.3]} 10. f5 {[%clk 0:02:49.8]} 10... Bc4 {[%clk 0:02:54]} 11. Qf3 {[%clk
0:02:50.1]} 11... Rc8 {[%clk 0:02:46]} 12. Nd2 {[%clk 0:02:46.5]} 12... Bxf1
{[%clk 0:02:42.9]} 13. Rxf1 {[%clk 0:02:48.4]} 13... b5 {[%clk 0:02:42.4]} 14.
a3 {[%clk 0:02:43.7]} 14... Qb7 {[%clk 0:02:34.6]} 15. g4 {[%clk 0:02:37.3]}
15... h6 {[%clk 0:02:35.1]} 16. h4 {[%clk 0:02:26.1]} 16... b4 {[%clk
0:02:24.3]} 17. axb4 {[%clk 0:02:25.6]} 17... Qxb4 {[%clk 0:02:26.2]} 18. Ra2
{[%clk 0:01:43.9]} 18... d5 {[%clk 0:02:15.6]} 19. exd5 {[%clk 0:01:36.6]} 19...
Nxg4 {[%clk 0:02:08.1]} 20. Nde4 {[%clk 0:01:32.6]} 20... Nh2 {[%clk 0:02:03.1]}
21. Qe2 {[%clk 0:01:31.2]} 21... Nxf1 {[%clk 0:02:03.1]} 22. Qxa6 {[%clk
0:01:32.7]} 22... Qb8 {[%clk 0:01:46.5]} 23. Kxf1 {[%clk 0:01:28.7]} 23... Be7
{[%clk 0:01:46.5]} 24. d6 {[%clk 0:01:10.9]} 24... Bd8 {[%clk 0:01:33.9]} 25.
Ba7 {[%clk 0:01:07.9]} 25... Qa8 {[%clk 0:01:34.6]} 26. Qb5 {[%clk 0:01:05.8]}
26... Rxc3 {[%clk 0:01:06.5]} 27. Nxc3 {[%clk 0:00:59.8]} 27... Qf3+ {[%clk
0:01:07]} 28. Kg1 {[%clk 0:00:52.3]} 28... Qg4+ {[%clk 0:00:57.2]} 29. Kf2
{[%clk 0:00:32.7]} 29... Bxh4+ {[%clk 0:00:57.1]} 30. Ke3 {[%clk 0:00:33.1]}
30... Qxf5 {[%clk 0:00:50.9]} 31. Nd5 {[%clk 0:00:22.3]} 31... Qf2+ {[%clk
0:00:37]} 32. Kd3 {[%clk 0:00:21.2]} 32... Qf1+ {[%clk 0:00:37.7]} 33. Kd2
{[%clk 0:00:06.4]} 33... Qe1+ {[%clk 0:00:25.8]} 34. Kd3 {[%clk 0:00:04.8]}
34... Qf1+ {[%clk 0:00:16.7]} 35. Kd2 {[%clk 0:00:06.1]} 35... Bg5+ {[%clk
0:00:15]} 36. Kc3 {[%clk 0:00:06.1]} 36... Qf3+ {[%clk 0:00:15.9]} 37. Kb4
{[%clk 0:00:06.9]} 37... O-O {[%clk 0:00:16.6]} 38. c4 {[%clk 0:00:07.2]} 38...
Bd2+ {[%clk 0:00:14.1]} 39. Ka4 {[%clk 0:00:08.4]} 39... Ra8 {[%clk 0:00:13.5]}
40. Qb7 {[%clk 0:00:09.3]} 40... Rxa7+ {[%clk 0:00:12.2]} 41. Qxa7 {[%clk
0:00:10.7]} 41... Qd3 {[%clk 0:00:13.1]} 42. Qxd7 {[%clk 0:00:07.2]} 42... Qxc4+
{[%clk 0:00:14]} 43. b4 {[%clk 0:00:06.9]} 43... Qxa2+ {[%clk 0:00:14.8]} 44.
Kb5 {[%clk 0:00:05.8]} 44... Qxd5+ {[%clk 0:00:16.3]} 45. Kb6 {[%clk 0:00:07.2]}
45... Bxb4 {[%clk 0:00:15.5]} 46. Qe8+ {[%clk 0:00:07.8]} 46... Kh7 {[%clk
0:00:16.9]} 47. d7 {[%clk 0:00:09.7]} 47... Ba5+ {[%clk 0:00:17.8]} 48. Ka6
{[%clk 0:00:09.1]} 48... Bc7 {[%clk 0:00:17.6]} 49. Qc8 {[%clk 0:00:08.4]} 49...
Qc6+ {[%clk 0:00:18.6]} 50. Ka7 {[%clk 0:00:08.4]} 50... Qb6+ {[%clk 0:00:19.2]}
51. Ka8 {[%clk 0:00:09.2]} 51... Qa5+ {[%clk 0:00:20.6]} 52. Kb7 {[%clk
0:00:10.1]} 52... Bd8 {[%clk 0:00:22.1]} 53. Qc2+ {[%clk 0:00:09.1]} 53... g6
{[%clk 0:00:22.7]} 54. Qc4 {[%clk 0:00:10.4]} 54... Kg7 {[%clk 0:00:21.1]} 55.
Kc8 {[%clk 0:00:08.9]} 55... Bf6 {[%clk 0:00:21.9]} 56. Qe4 {[%clk 0:00:08.7]}
56... Qd8+ {[%clk 0:00:20.6]} 0-1

[Event "*** Titled Tuesday Blitz AM"]
[Site "Chess.com"]
[Date "2020.01.07"]
[Round "1"]
[White "FMAntonio"]
[Black "nihalsarin"]
[Result "0-1"]
[WhiteElo "2525"]
[BlackElo "3068"]
[TimeControl "180+2"]
[EndTime "9:10:07 PST"]
[Termination "nihalsarin won by resignation"]

1. d4 {[%clk 0:02:08.4]} 1... Nf6 {[%clk 0:02:58]} 2. c4 {[%clk 0:02:08.3]} 2...
g6 {[%clk 0:02:59.5]} 3. Nc3 {[%clk 0:02:08.9]} 3... d5 {[%clk 0:03:01.1]} 4. e3
{[%clk 0:02:09]} 4... Bg7 {[%clk 0:03:01.9]} 5. Qb3 {[%clk 0:02:10]} 5... c6
{[%clk 0:03:01.3]} 6. Nf3 {[%clk 0:02:10.5]} 6... O-O {[%clk 0:03:02.3]} 7. Be2
{[%clk 0:02:11.6]} 7... dxc4 {[%clk 0:02:51.7]} 8. Bxc4 {[%clk 0:02:11.7]} 8...
Nbd7 {[%clk 0:02:51.3]} 9. O-O {[%clk 0:02:12]} 9... Nb6 {[%clk 0:02:52.8]} 10.
Be2 {[%clk 0:02:13]} 10... Be6 {[%clk 0:02:53.5]} 11. Qc2 {[%clk 0:02:14]} 11...
Rc8 {[%clk 0:02:54.4]} 12. e4 {[%clk 0:02:13.3]} 12... Bg4 {[%clk 0:02:51.9]}
13. Rd1 {[%clk 0:02:13]} 13... Qc7 {[%clk 0:02:49.3]} 14. Bg5 {[%clk 0:01:52.9]}
14... Bxf3 {[%clk 0:02:26.1]} 15. Bxf3 {[%clk 0:01:52.9]} 15... e5 {[%clk
0:02:27.8]} 16. dxe5 {[%clk 0:01:48.7]} 16... Qxe5 {[%clk 0:02:29.7]} 17. Bh4
{[%clk 0:01:49.2]} 17... Nh5 {[%clk 0:02:29.5]} 18. a4 {[%clk 0:01:42.3]} 18...
Rfe8 {[%clk 0:02:00.5]} 19. Qb3 {[%clk 0:01:38.7]} 19... Qa5 {[%clk 0:01:33]}
20. Rd2 {[%clk 0:01:02.7]} 20... Bf6 {[%clk 0:01:23.2]} 21. Bxf6 {[%clk
0:00:55.6]} 21... Nxf6 {[%clk 0:01:25.1]} 22. Rad1 {[%clk 0:00:56.3]} 22... Qc5
{[%clk 0:01:26.6]} 23. h3 {[%clk 0:00:43.9]} 23... h5 {[%clk 0:01:27]} 24. Rd6
{[%clk 0:00:24.9]} 24... Kg7 {[%clk 0:01:22.6]} 25. Qc2 {[%clk 0:00:16.2]} 25...
Nc4 {[%clk 0:01:06.2]} 26. R6d4 {[%clk 0:00:16]} 26... Ne5 {[%clk 0:01:00.7]}
27. Be2 {[%clk 0:00:17.2]} 27... a5 {[%clk 0:00:48.5]} 28. Kh1 {[%clk
0:00:17.9]} 28... g5 {[%clk 0:00:34.4]} 29. Qd2 {[%clk 0:00:17.4]} 29... Ng6
{[%clk 0:00:34.7]} 30. Rc4 {[%clk 0:00:15]} 30... Qe5 {[%clk 0:00:34.4]} 31. b4
{[%clk 0:00:08.5]} 31... Rcd8 {[%clk 0:00:30.4]} 32. Rd4 {[%clk 0:00:05.3]}
32... Rxd4 {[%clk 0:00:13.5]} 33. Qxd4 {[%clk 0:00:07.2]} 33... axb4 {[%clk
0:00:14.9]} 34. Qxb4 {[%clk 0:00:07.1]} 34... Nxe4 {[%clk 0:00:16.3]} 35. Nxe4
{[%clk 0:00:07.8]} 35... Qxe4 {[%clk 0:00:18.2]} 36. Qb2+ {[%clk 0:00:06.4]}
36... Qe5 {[%clk 0:00:16.8]} 37. Qxe5+ {[%clk 0:00:03.5]} 37... Rxe5 {[%clk
0:00:18.7]} 38. Bxh5 {[%clk 0:00:04.6]} 38... Nf4 {[%clk 0:00:20.4]} 39. Bf3
{[%clk 0:00:05.7]} 39... Ra5 {[%clk 0:00:21.2]} 40. Rb1 {[%clk 0:00:06.8]} 40...
Ra7 {[%clk 0:00:22.3]} 41. a5 {[%clk 0:00:07.6]} 41... Nd3 {[%clk 0:00:22.1]}
42. a6 {[%clk 0:00:07.7]} 42... bxa6 {[%clk 0:00:16]} 43. Bxc6 {[%clk
0:00:08.8]} 43... Nxf2+ {[%clk 0:00:17.5]} 44. Kg1 {[%clk 0:00:10.5]} 44... Nd3
{[%clk 0:00:19.1]} 45. Rf1 {[%clk 0:00:04.3]} 45... a5 {[%clk 0:00:18.7]} 46.
Bb5 {[%clk 0:00:05.1]} 46... Ne5 {[%clk 0:00:19.2]} 47. Kf2 {[%clk 0:00:06]}
47... a4 {[%clk 0:00:19.1]} 48. Ke3 {[%clk 0:00:05.7]} 48... Ra5 {[%clk
0:00:19.3]} 49. Be2 {[%clk 0:00:06]} 49... a3 {[%clk 0:00:19]} 50. Kd4 {[%clk
0:00:07.2]} 50... Nc6+ {[%clk 0:00:14.5]} 51. Kc3 {[%clk 0:00:07]} 51... Rc5+
{[%clk 0:00:13.5]} 52. Kd3 {[%clk 0:00:05.7]} 52... a2 {[%clk 0:00:12.1]} 53.
Ra1 {[%clk 0:00:05.9]} 53... Nb4+ {[%clk 0:00:13.4]} 54. Kd2 {[%clk 0:00:07.3]}
54... Rc2+ {[%clk 0:00:12.7]} 55. Kd1 {[%clk 0:00:08.6]} 55... Rb2 {[%clk
0:00:13.8]} 56. Bf3 {[%clk 0:00:05.3]} 56... Rb1+ {[%clk 0:00:14.7]} 0-1

[Event "*** Titled Tuesday Blitz AM"]
[Site "Chess.com"]
[Date "2020.01.07"]
[Round "1"]
[White "joppie2"]
[Black "KRASAVCHIK2002"]
[Result "1/2-1/2"]
[WhiteElo "2850"]
[BlackElo "2473"]
[TimeControl "180+2"]
[EndTime "9:10:09 PST"]
[Termination "Game drawn by agreement"]

1. e4 {[%clk 0:03:01.9]} 1... e5 {[%clk 0:02:58.6]} 2. Nf3 {[%clk 0:03:03]} 2...
Nc6 {[%clk 0:02:58.2]} 3. Bc4 {[%clk 0:03:03.8]} 3... Nf6 {[%clk 0:02:58.3]} 4.
d3 {[%clk 0:03:05.2]} 4... h6 {[%clk 0:02:56.7]} 5. O-O {[%clk 0:03:04.6]} 5...
d6 {[%clk 0:02:58.2]} 6. c3 {[%clk 0:03:04.2]} 6... g5 {[%clk 0:02:59.3]} 7. Re1
{[%clk 0:03:04.9]} 7... Bg7 {[%clk 0:02:41.5]} 8. d4 {[%clk 0:03:05.9]} 8... Bg4
{[%clk 0:02:30.3]} 9. dxe5 {[%clk 0:02:21.6]} 9... Nxe5 {[%clk 0:02:12.4]} 10.
Be2 {[%clk 0:02:21.7]} 10... Bxf3 {[%clk 0:01:56.1]} 11. Bxf3 {[%clk 0:02:23.6]}
11... Qd7 {[%clk 0:01:58]} 12. Nd2 {[%clk 0:02:21.5]} 12... h5 {[%clk
0:01:39.8]} 13. Be2 {[%clk 0:02:12.7]} 13... g4 {[%clk 0:01:33.9]} 14. Nc4
{[%clk 0:02:14.1]} 14... h4 {[%clk 0:01:30.4]} 15. Nxe5 {[%clk 0:02:11.1]} 15...
dxe5 {[%clk 0:01:30.7]} 16. Qxd7+ {[%clk 0:02:13]} 16... Nxd7 {[%clk 0:01:28.8]}
17. Bg5 {[%clk 0:02:14.9]} 17... Bf6 {[%clk 0:01:25.6]} 18. Be3 {[%clk
0:02:12.7]} 18... g3 {[%clk 0:01:23.1]} 19. fxg3 {[%clk 0:02:11.8]} 19... hxg3
{[%clk 0:01:25]} 20. hxg3 {[%clk 0:02:13.7]} 20... Rg8 {[%clk 0:01:22.3]} 21.
Kf2 {[%clk 0:02:14.6]} 21... Bg5 {[%clk 0:01:20]} 22. Bxg5 {[%clk 0:02:07.2]}
22... Rxg5 {[%clk 0:01:21.9]} 23. Rad1 {[%clk 0:02:06.5]} 23... Ke7 {[%clk
0:01:07.6]} 24. Rd3 {[%clk 0:02:04.2]} 24... Rag8 {[%clk 0:01:04.4]} 25. Re3
{[%clk 0:02:04.8]} 25... Nf6 {[%clk 0:01:00.9]} 26. Bd1 {[%clk 0:01:57.3]} 26...
Rg4 {[%clk 0:00:57.8]} 27. Bxg4 {[%clk 0:01:57.4]} 27... Nxg4+ {[%clk
0:00:58.8]} 28. Kf3 {[%clk 0:01:58.7]} 28... Nxe3 {[%clk 0:00:58.1]} 29. Rxe3
{[%clk 0:02:00.6]} 29... Rg6 {[%clk 0:00:57.1]} 30. Rd3 {[%clk 0:01:59.9]} 30...
Rb6 {[%clk 0:00:55.6]} 31. Rd2 {[%clk 0:02:00.8]} 31... Ra6 {[%clk 0:00:54.8]}
32. a3 {[%clk 0:02:01.8]} 32... Rf6+ {[%clk 0:00:46.8]} 33. Kg4 {[%clk
0:02:02.3]} 33... Rg6+ {[%clk 0:00:47.9]} 34. Kf5 {[%clk 0:02:01.5]} 34... Rxg3
{[%clk 0:00:48.4]} 35. Kxe5 {[%clk 0:02:02.9]} 35... Rg6 {[%clk 0:00:46.6]} 36.
Kf4 {[%clk 0:02:03.8]} 36... Rf6+ {[%clk 0:00:45.9]} 37. Ke3 {[%clk 0:02:04.5]}
37... Rf1 {[%clk 0:00:45]} 38. Rf2 {[%clk 0:01:57.1]} 38... Rg1 {[%clk
0:00:43.3]} 39. Kf4 {[%clk 0:01:58.5]} 39... Ke6 {[%clk 0:00:42.5]} 40. g4
{[%clk 0:01:59.6]} 40... a5 {[%clk 0:00:41.3]} 41. g5 {[%clk 0:01:58.1]} 41...
a4 {[%clk 0:00:41]} 42. Rd2 {[%clk 0:01:56]} 42... c6 {[%clk 0:00:37]} 43. Rd4
{[%clk 0:01:54.7]} 43... b5 {[%clk 0:00:36.5]} 44. c4 {[%clk 0:01:54.3]} 44...
Rf1+ {[%clk 0:00:36]} 45. Ke3 {[%clk 0:01:53.7]} 45... Rg1 {[%clk 0:00:35.2]}
46. cxb5 {[%clk 0:01:53.9]} 46... cxb5 {[%clk 0:00:34.4]} 47. Rd5 {[%clk
0:01:55.2]} 47... Rg3+ {[%clk 0:00:32.5]} 48. Kf4 {[%clk 0:01:55]} 48... Rb3
{[%clk 0:00:32.7]} 49. Rd2 {[%clk 0:01:56.6]} 49... b4 {[%clk 0:00:31.6]} 50.
axb4 {[%clk 0:01:58.5]} 50... Rxb4 {[%clk 0:00:32.2]} 51. Rc2 {[%clk 0:02:00.4]}
51... Rb3 {[%clk 0:00:30.1]} 52. Rc6+ {[%clk 0:01:56.9]} 52... Ke7 {[%clk
0:00:29.6]} 53. Rc2 {[%clk 0:01:57.6]} 53... a3 {[%clk 0:00:28.1]} 54. bxa3
{[%clk 0:01:59.5]} 54... Rxa3 {[%clk 0:00:30]} 55. Rc7+ {[%clk 0:02:01.1]} 55...
Ke6 {[%clk 0:00:28.9]} 56. Rc6+ {[%clk 0:02:00.7]} 56... Ke7 {[%clk 0:00:28.4]}
57. Kf5 {[%clk 0:02:02.2]} 57... Rg3 {[%clk 0:00:26.8]} 58. Rc7+ {[%clk
0:02:03]} 58... Kf8 {[%clk 0:00:26.6]} 59. Ra7 {[%clk 0:01:57.9]} 59... Rg1
{[%clk 0:00:25]} 60. Ra3 {[%clk 0:01:53.4]} 60... Rf1+ {[%clk 0:00:21.1]} 61.
Ke5 {[%clk 0:01:54.6]} 61... Kg7 {[%clk 0:00:20.9]} 62. Rg3 {[%clk 0:01:52.6]}
62... Kg6 {[%clk 0:00:20.3]} 63. Rg2 {[%clk 0:01:53.6]} 63... Rb1 {[%clk
0:00:20.4]} 64. Kf4 {[%clk 0:01:54.6]} 64... Rf1+ {[%clk 0:00:19.2]} 65. Ke5
{[%clk 0:01:54]} 65... Rb1 {[%clk 0:00:19.4]} 66. Rg4 {[%clk 0:01:54.3]} 66...
Rd1 {[%clk 0:00:16.8]} 67. Rf4 {[%clk 0:01:54]} 67... Ra1 {[%clk 0:00:14.4]} 68.
Rf6+ {[%clk 0:01:55.3]} 68... Kg7 {[%clk 0:00:12.6]} 69. Rd6 {[%clk 0:01:56.9]}
69... Rg1 {[%clk 0:00:11]} 70. Kf4 {[%clk 0:01:56.6]} 70... Rf1+ {[%clk
0:00:12.2]} 71. Ke3 {[%clk 0:01:58.3]} 71... Re1+ {[%clk 0:00:11.1]} 72. Kf3
{[%clk 0:01:59.1]} 72... Rf1+ {[%clk 0:00:12.3]} 73. Kg2 {[%clk 0:02:00.5]}
73... Rf4 {[%clk 0:00:12]} 74. g6 {[%clk 0:01:58.4]} 74... fxg6 {[%clk
0:00:11.7]} 75. Rd4 {[%clk 0:01:59.1]} 75... g5 {[%clk 0:00:11.1]} 76. Kg3
{[%clk 0:02:00.6]} 76... Kf6 {[%clk 0:00:11.2]} 77. Ra4 {[%clk 0:02:01.7]} 77...
Ke5 {[%clk 0:00:09.3]} 78. Ra5+ {[%clk 0:02:02.4]} 78... Kxe4 {[%clk 0:00:10.7]}
79. Rxg5 {[%clk 0:02:03.3]} 79... Rf3+ {[%clk 0:00:11.4]} 80. Kg2 {[%clk
0:02:04.2]} 80... Re3 {[%clk 0:00:12.5]} 81. Rg4+ {[%clk 0:02:05.7]} 81... Kd3
{[%clk 0:00:13.6]} 82. Kf2 {[%clk 0:02:07.2]} 82... Re2+ {[%clk 0:00:14]} 83.
Kf1 {[%clk 0:02:08.7]} 83... Re8 {[%clk 0:00:15.9]} 84. Rg3+ {[%clk 0:02:09.1]}
1/2-1/2